[Event "Titled Tuesday Blitz June 13 Late 2023"]
[White "Hansen, Eric"]
[Black "Annaberdiyev, Meylis"]
[WhiteFideId "2606771"]
[BlackFideId "14000563"]
[WhiteElo "2561"]
[BlackElo "2416"]
[Result "1-0"]
[Round "5"]
[TimeControl "180+2"]
[Date "2023.06.13"]
[WhiteClock "0:00:02"]
[BlackClock "0:00:00"]
[Board "29"]

1. d4 {[%clk 0:03:00]}  Nf6 {[%clk 0:02:59]} 2. c4 {[%clk 0:02:58]}  g6 {[%clk 0:02:59]} 3. Nc3 {[%clk 0:02:59]}  Bg7 {[%clk 0:03:00]} 4. f3 {[%clk 0:02:58]}  d6 {[%clk 0:02:59]} 5. e4 {[%clk 0:02:59]}  O-O {[%clk 0:02:59]} 6. Be3 {[%clk 0:02:59]}  Nbd7 {[%clk 0:02:59]} 7. Nge2 {[%clk 0:02:58]}  c5 {[%clk 0:02:59]} 8. d5 {[%clk 0:02:58]}  Ne5 {[%clk 0:02:55]} 9. Ng3 {[%clk 0:02:58]}  e6 {[%clk 0:02:55]} 10. Be2 {[%clk 0:02:58]}  a6 {[%clk 0:02:47]} 11. a4 {[%clk 0:02:57]}  h5 {[%clk 0:02:09]} 12. O-O {[%clk 0:02:46]}  h4 {[%clk 0:02:07]} 13. Nh1 {[%clk 0:02:46]}  h3 {[%clk 0:02:08]} 14. g3 {[%clk 0:02:44]}  exd5 {[%clk 0:02:03]} 15. cxd5 {[%clk 0:02:44]}  Rb8 {[%clk 0:02:00]} 16. Nf2 {[%clk 0:02:40]}  b5 {[%clk 0:01:59]} 17. axb5 {[%clk 0:02:28]}  axb5 {[%clk 0:01:59]} 18. Bxb5 {[%clk 0:02:29]}  Bd7 {[%clk 0:01:52]} 19. Bxd7 {[%clk 0:02:24]}  Qxd7 {[%clk 0:01:51]} 20. Qe2 {[%clk 0:02:24]}  Rb4 {[%clk 0:01:41]} 21. Ra2 {[%clk 0:02:18]}  Rfb8 {[%clk 0:01:41]} 22. Rd1 {[%clk 0:01:51]}  Nh5 {[%clk 0:01:14]} 23. Bc1 {[%clk 0:01:44]}  f5 {[%clk 0:01:02]} 24. exf5 {[%clk 0:01:27]}  Qxf5 {[%clk 0:00:33]} 25. g4 {[%clk 0:01:27]}  Qxf3 {[%clk 0:00:18]} 26. Qxf3 {[%clk 0:00:56]}  Nxf3+ {[%clk 0:00:19]} 27. Kh1 {[%clk 0:00:57]}  Nf4 {[%clk 0:00:19]} 28. Bxf4 {[%clk 0:00:25]}  Rxf4 {[%clk 0:00:19]} 29. Nxh3 {[%clk 0:00:22]}  Rxg4 {[%clk 0:00:19]} 30. Nf2 {[%clk 0:00:19]}  Rd4 {[%clk 0:00:18]} 31. Rxd4 {[%clk 0:00:17]}  cxd4 {[%clk 0:00:17]} 32. Nce4 {[%clk 0:00:17]}  Rc8 {[%clk 0:00:14]} 33. b4 {[%clk 0:00:13]}  Nh4 {[%clk 0:00:13]} 34. Nd3 {[%clk 0:00:11]}  Nf5 {[%clk 0:00:12]} 35. b5 {[%clk 0:00:11]}  Re8 {[%clk 0:00:10]} 36. b6 {[%clk 0:00:10]}  Rb8 {[%clk 0:00:05]} 37. Rb2 {[%clk 0:00:09]}  Ne7 {[%clk 0:00:04]} 38. Rb5 {[%clk 0:00:07]}  Rb7 {[%clk 0:00:04]} 39. Nxd6 {[%clk 0:00:05]}  Rb8 {[%clk 0:00:04]} 40. b7 {[%clk 0:00:05]}  Bf8 {[%clk 0:00:03]} 41. Nc4 {[%clk 0:00:04]}  Nxd5 {[%clk 0:00:03]} 42. Rxd5 {[%clk 0:00:05]}  Rxb7 {[%clk 0:00:03]} 43. Rxd4 {[%clk 0:00:05]}  Rb1+ {[%clk 0:00:04]} 44. Kg2 {[%clk 0:00:05]}  Rd1 {[%clk 0:00:05]} 45. h3 {[%clk 0:00:03]}  Bg7 {[%clk 0:00:05]} 46. Rd8+ {[%clk 0:00:03]}  Kh7 {[%clk 0:00:06]} 47. Ne3 {[%clk 0:00:03]}  Rd2+ {[%clk 0:00:05]} 48. Kf3 {[%clk 0:00:04]}  Rh2 {[%clk 0:00:05]} 49. Kg3 {[%clk 0:00:04]}  Rd2 {[%clk 0:00:06]} 50. Ng4 {[%clk 0:00:04]}  Rd1 {[%clk 0:00:04]} 51. Rd7 {[%clk 0:00:04]}  Kh8 {[%clk 0:00:04]} 52. Kf3 {[%clk 0:00:04]}  Rf1+ {[%clk 0:00:04]} 53. Ke4 {[%clk 0:00:05]}  Rh1 {[%clk 0:00:04]} 54. Nf4 {[%clk 0:00:05]}  g5 {[%clk 0:00:02]} 55. Ng6+ {[%clk 0:00:05]}  Kh7 {[%clk 0:00:03]} 56. Kf5 {[%clk 0:00:05]}  Rf1+ {[%clk 0:00:02]} 57. Kxg5 {[%clk 0:00:05]}  Rf5+ {[%clk 0:00:01]} 58. Kxf5 {[%clk 0:00:04]}  Kg8 {[%clk 0:00:00]} 59. Rd8+ {[%clk 0:00:02]} 1-0


[Site "https://www.chess.com"]

[Event "Titled Tuesday Blitz June 13 Late 2023"]
[White "Adewumi, Tanitoluwa"]
[Black "Jumabayev, Rinat"]
[WhiteFideId "30966396"]
[BlackFideId "13702661"]
[WhiteElo "2635"]
[BlackElo "2561"]
[Result "0-1"]
[Round "5"]
[TimeControl "180+2"]
[Date "2023.06.13"]
[WhiteClock "0:00:01"]
[BlackClock "0:01:54"]
[Board "30"]

1. e4 {[%clk 0:03:00]}  d6 {[%clk 0:02:55]} 2. d4 {[%clk 0:03:00]}  g6 {[%clk 0:02:56]} 3. f4 {[%clk 0:02:50]}  Bg7 {[%clk 0:02:56]} 4. Nf3 {[%clk 0:02:51]}  c5 {[%clk 0:02:43]} 5. dxc5 {[%clk 0:02:52]}  Qa5+ {[%clk 0:02:43]} 6. Bd2 {[%clk 0:02:52]}  Qxc5 {[%clk 0:02:44]} 7. Bc3 {[%clk 0:02:53]}  Nf6 {[%clk 0:02:43]} 8. Bd3 {[%clk 0:02:35]}  Nc6 {[%clk 0:02:41]} 9. Qe2 {[%clk 0:02:21]}  O-O {[%clk 0:02:40]} 10. Nbd2 {[%clk 0:02:20]}  Nh5 {[%clk 0:02:40]} 11. g3 {[%clk 0:01:21]}  Bxc3 {[%clk 0:02:38]} 12. bxc3 {[%clk 0:01:22]}  Bg4 {[%clk 0:02:37]} 13. Qf2 {[%clk 0:01:08]}  Qxc3 {[%clk 0:02:37]} 14. O-O {[%clk 0:01:07]}  Nb4 {[%clk 0:02:35]} 15. Qd4 {[%clk 0:00:38]}  Rac8 {[%clk 0:02:30]} 16. Qxa7 {[%clk 0:00:31]}  Nxd3 {[%clk 0:02:29]} 17. cxd3 {[%clk 0:00:32]}  Qxd3 {[%clk 0:02:29]} 18. Rf2 {[%clk 0:00:17]}  Rc2 {[%clk 0:02:22]} 19. Qxb7 {[%clk 0:00:17]}  Bxf3 {[%clk 0:02:16]} 20. Nxf3 {[%clk 0:00:17]}  Qe3 {[%clk 0:02:04]} 21. Rf1 {[%clk 0:00:17]}  Nf6 {[%clk 0:02:03]} 22. Qb3 {[%clk 0:00:09]}  Rc3 {[%clk 0:02:03]} 23. Qb4 {[%clk 0:00:02]}  Nxe4 {[%clk 0:01:59]} 24. Kg2 {[%clk 0:00:02]}  Nxf2 {[%clk 0:01:56]} 25. Rxf2 {[%clk 0:00:03]}  Rfc8 {[%clk 0:01:56]} 26. a4 {[%clk 0:00:02]}  Rc2 {[%clk 0:01:54]} 27. Qe1 {[%clk 0:00:01]} 0-1


[Site "https://www.chess.com"]

[Event "Titled Tuesday Blitz June 13 Late 2023"]
[White "Maksimovic, Bojan"]
[Black "Fiorito, Joaquin"]
[WhiteFideId "14408120"]
[BlackFideId "180173"]
[WhiteElo "2457"]
[BlackElo "2199"]
[Result "1-0"]
[Round "5"]
[TimeControl "180+2"]
[Date "2023.06.13"]
[WhiteClock "0:00:37"]
[BlackClock "0:00:06"]
[Board "31"]

1. e4 {[%clk 0:03:00]}  c5 {[%clk 0:03:00]} 2. Nf3 {[%clk 0:03:01]}  d6 {[%clk 0:03:00]} 3. d4 {[%clk 0:03:00]}  cxd4 {[%clk 0:03:01]} 4. Nxd4 {[%clk 0:03:01]}  Nf6 {[%clk 0:03:02]} 5. Nc3 {[%clk 0:03:01]}  a6 {[%clk 0:03:03]} 6. Bg5 {[%clk 0:03:01]}  Nbd7 {[%clk 0:03:02]} 7. Qe2 {[%clk 0:03:01]}  h6 {[%clk 0:02:57]} 8. Bh4 {[%clk 0:03:01]}  g6 {[%clk 0:02:57]} 9. f4 {[%clk 0:03:01]}  e5 {[%clk 0:02:54]} 10. fxe5 {[%clk 0:03:01]}  dxe5 {[%clk 0:02:53]} 11. O-O-O {[%clk 0:03:02]}  Bg7 {[%clk 0:02:46]} 12. Nb3 {[%clk 0:02:42]}  Qc7 {[%clk 0:02:46]} 13. Nd5 {[%clk 0:02:36]}  Nxd5 {[%clk 0:02:45]} 14. exd5 {[%clk 0:02:36]}  Qd6 {[%clk 0:02:37]} 15. Nd2 {[%clk 0:02:32]}  f5 {[%clk 0:02:26]} 16. g4 {[%clk 0:01:57]}  O-O {[%clk 0:01:13]} 17. Nc4 {[%clk 0:01:52]}  Qc5 {[%clk 0:01:12]} 18. gxf5 {[%clk 0:01:46]}  gxf5 {[%clk 0:01:12]} 19. Bf2 {[%clk 0:01:39]}  Qe7 {[%clk 0:01:11]} 20. Rg1 {[%clk 0:01:38]}  b5 {[%clk 0:01:07]} 21. Na5 {[%clk 0:01:36]}  Qf6 {[%clk 0:00:58]} 22. d6 {[%clk 0:01:21]}  Kh8 {[%clk 0:00:45]} 23. Kb1 {[%clk 0:01:18]}  Qe6 {[%clk 0:00:35]} 24. Nc6 {[%clk 0:00:37]}  Bb7 {[%clk 0:00:34]} 25. Ne7 {[%clk 0:00:38]}  Rf7 {[%clk 0:00:28]} 26. Bh3 {[%clk 0:00:38]}  Raf8 {[%clk 0:00:21]} 27. Qh5 {[%clk 0:00:36]}  Rxe7 {[%clk 0:00:19]} 28. dxe7 {[%clk 0:00:37]}  Qxe7 {[%clk 0:00:20]} 29. Bxf5 {[%clk 0:00:36]}  Nf6 {[%clk 0:00:20]} 30. Qg6 {[%clk 0:00:37]}  Bc6 {[%clk 0:00:18]} 31. Bh4 {[%clk 0:00:37]}  Be8 {[%clk 0:00:11]} 32. Bxf6 {[%clk 0:00:37]}  Bxg6 {[%clk 0:00:07]} 33. Bxe7 {[%clk 0:00:37]}  Rxf5 {[%clk 0:00:06]} 34. Rxg6 {[%clk 0:00:37]} 1-0


[Site "https://www.chess.com"]

[Event "Titled Tuesday Blitz June 13 Late 2023"]
[White "Kravtsiv, Martyn"]
[Black "Moral Garcia, Serafin"]
[WhiteFideId "14113147"]
[BlackFideId "2201925"]
[WhiteElo "2695"]
[BlackElo "2274"]
[Result "1-0"]
[Round "5"]
[TimeControl "180+2"]
[Date "2023.06.13"]
[WhiteClock "0:00:42"]
[BlackClock "0:00:24"]
[Board "34"]

1. e4 {[%clk 0:03:00]}  e5 {[%clk 0:02:59]} 2. Nf3 {[%clk 0:03:00]}  Nf6 {[%clk 0:02:58]} 3. Nc3 {[%clk 0:03:00]}  Nc6 {[%clk 0:02:57]} 4. a4 {[%clk 0:03:00]}  g6 {[%clk 0:02:53]} 5. Bc4 {[%clk 0:02:57]}  Bg7 {[%clk 0:02:53]} 6. d3 {[%clk 0:02:58]}  d6 {[%clk 0:02:50]} 7. h3 {[%clk 0:02:53]}  O-O {[%clk 0:02:49]} 8. Be3 {[%clk 0:02:52]}  Be6 {[%clk 0:02:48]} 9. Bxe6 {[%clk 0:02:46]}  fxe6 {[%clk 0:02:47]} 10. Ne2 {[%clk 0:02:46]}  d5 {[%clk 0:02:41]} 11. Ng3 {[%clk 0:02:45]}  Qe7 {[%clk 0:02:41]} 12. c3 {[%clk 0:02:41]}  Rad8 {[%clk 0:02:33]} 13. Qc2 {[%clk 0:02:38]}  d4 {[%clk 0:02:26]} 14. Bg5 {[%clk 0:02:18]}  Qc5 {[%clk 0:02:08]} 15. Qb3 {[%clk 0:02:16]}  Kh8 {[%clk 0:01:58]} 16. c4 {[%clk 0:02:05]}  b6 {[%clk 0:01:44]} 17. O-O {[%clk 0:02:02]}  Rd7 {[%clk 0:01:36]} 18. Rfc1 {[%clk 0:01:52]}  Rdf7 {[%clk 0:01:33]} 19. Bxf6 {[%clk 0:01:47]}  Rxf6 {[%clk 0:01:31]} 20. Qb5 {[%clk 0:01:44]}  Nb4 {[%clk 0:01:19]} 21. Ra3 {[%clk 0:01:39]}  a6 {[%clk 0:00:59]} 22. Qxc5 {[%clk 0:01:34]}  bxc5 {[%clk 0:01:00]} 23. Kf1 {[%clk 0:01:23]}  Bh6 {[%clk 0:00:57]} 24. Rd1 {[%clk 0:01:21]}  Bf4 {[%clk 0:00:57]} 25. Nh1 {[%clk 0:01:17]}  h5 {[%clk 0:00:54]} 26. Ke2 {[%clk 0:01:16]}  Bh6 {[%clk 0:00:51]} 27. Nxe5 {[%clk 0:01:14]}  Rd8 {[%clk 0:00:39]} 28. Rb3 {[%clk 0:01:12]}  Kg7 {[%clk 0:00:34]} 29. g3 {[%clk 0:01:05]}  h4 {[%clk 0:00:33]} 30. gxh4 {[%clk 0:00:50]}  Kh7 {[%clk 0:00:26]} 31. Rg1 {[%clk 0:00:48]}  Rdf8 {[%clk 0:00:24]} 32. Nd7 {[%clk 0:00:42]} 1-0


[Site "https://www.chess.com"]

[Event "Titled Tuesday Blitz June 13 Late 2023"]
[White "ATM622"]
[Black "Rodrigue-Lemieux, Shawn"]
[BlackFideId "2620049"]
[WhiteElo "2606"]
[BlackElo "2405"]
[Result "0-1"]
[Round "5"]
[TimeControl "180+2"]
[Date "2023.06.13"]
[WhiteClock "0:00:41"]
[BlackClock "0:00:07"]
[Board "35"]

1. d4 {[%clk 0:03:00]}  Nf6 {[%clk 0:02:54]} 2. c4 {[%clk 0:03:00]}  a6 {[%clk 0:02:48]} 3. g3 {[%clk 0:03:00]}  b5 {[%clk 0:02:48]} 4. Bg2 {[%clk 0:02:59]}  Ra7 {[%clk 0:02:49]} 5. b3 {[%clk 0:02:54]}  Bb7 {[%clk 0:02:48]} 6. Nf3 {[%clk 0:02:49]}  g6 {[%clk 0:02:46]} 7. O-O {[%clk 0:02:46]}  Bg7 {[%clk 0:02:46]} 8. Bb2 {[%clk 0:02:47]}  O-O {[%clk 0:02:46]} 9. d5 {[%clk 0:02:45]}  d6 {[%clk 0:02:40]} 10. Nd4 {[%clk 0:02:42]}  Qd7 {[%clk 0:02:38]} 11. Nc3 {[%clk 0:02:39]}  bxc4 {[%clk 0:02:36]} 12. bxc4 {[%clk 0:02:39]}  c6 {[%clk 0:02:36]} 13. e4 {[%clk 0:02:37]}  Rc8 {[%clk 0:02:33]} 14. Rc1 {[%clk 0:02:34]}  cxd5 {[%clk 0:02:33]} 15. cxd5 {[%clk 0:02:34]}  Ba8 {[%clk 0:02:31]} 16. Na4 {[%clk 0:02:31]}  Rxc1 {[%clk 0:02:29]} 17. Bxc1 {[%clk 0:02:32]}  Qc7 {[%clk 0:02:23]} 18. f4 {[%clk 0:02:28]}  Nbd7 {[%clk 0:02:22]} 19. Be3 {[%clk 0:02:25]}  h5 {[%clk 0:02:15]} 20. Qc1 {[%clk 0:02:21]}  Ng4 {[%clk 0:02:12]} 21. Nc6 {[%clk 0:02:10]}  Nxe3 {[%clk 0:02:09]} 22. Qxe3 {[%clk 0:02:09]}  Bxc6 {[%clk 0:01:59]} 23. dxc6 {[%clk 0:02:10]}  Nb8 {[%clk 0:02:00]} 24. Rc1 {[%clk 0:02:07]}  a5 {[%clk 0:01:18]} 25. Kh1 {[%clk 0:02:01]}  Ra6 {[%clk 0:01:16]} 26. Nb6 {[%clk 0:01:55]}  e6 {[%clk 0:00:45]} 27. a4 {[%clk 0:01:48]}  Nxc6 {[%clk 0:00:36]} 28. e5 {[%clk 0:01:46]}  d5 {[%clk 0:00:29]} 29. Nxd5 {[%clk 0:01:43]}  exd5 {[%clk 0:00:29]} 30. Bxd5 {[%clk 0:01:44]}  Qd7 {[%clk 0:00:27]} 31. Bc4 {[%clk 0:01:40]}  Ra8 {[%clk 0:00:23]} 32. e6 {[%clk 0:01:37]}  Qd4 {[%clk 0:00:20]} 33. exf7+ {[%clk 0:01:35]}  Kh7 {[%clk 0:00:20]} 34. Qe6 {[%clk 0:01:28]}  Nb4 {[%clk 0:00:14]} 35. f5 {[%clk 0:01:26]}  Qf6 {[%clk 0:00:12]} 36. fxg6+ {[%clk 0:01:23]}  Qxg6 {[%clk 0:00:11]} 37. Qe2 {[%clk 0:01:17]}  Rf8 {[%clk 0:00:10]} 38. Rf1 {[%clk 0:01:12]}  Qc6+ {[%clk 0:00:09]} 39. Qf3 {[%clk 0:01:04]}  Qxf3+ {[%clk 0:00:07]} 40. Rxf3 {[%clk 0:01:04]}  Kg6 {[%clk 0:00:08]} 41. Kg2 {[%clk 0:01:01]}  Bf6 {[%clk 0:00:06]} 42. h4 {[%clk 0:00:57]}  Nc6 {[%clk 0:00:06]} 43. Kh3 {[%clk 0:00:54]}  Ne5 {[%clk 0:00:06]} 44. Rc3 {[%clk 0:00:52]}  Nxc4 {[%clk 0:00:06]} 45. Rxc4 {[%clk 0:00:53]}  Rxf7 {[%clk 0:00:06]} 46. g4 {[%clk 0:00:51]}  Rb7 {[%clk 0:00:03]} 47. gxh5+ {[%clk 0:00:49]}  Kf5 {[%clk 0:00:03]} 48. Rc5+ {[%clk 0:00:47]}  Be5 {[%clk 0:00:04]} 49. Rxa5 {[%clk 0:00:47]}  Rb2 {[%clk 0:00:05]} 50. Rxe5+ {[%clk 0:00:43]}  Kxe5 {[%clk 0:00:06]} 51. Kg4 {[%clk 0:00:44]}  Kf6 {[%clk 0:00:05]} 52. h6 {[%clk 0:00:43]}  Kg6 {[%clk 0:00:06]} 53. a5 {[%clk 0:00:42]}  Kxh6 {[%clk 0:00:06]} 54. a6 {[%clk 0:00:42]}  Ra2 {[%clk 0:00:06]} 55. a7 {[%clk 0:00:41]}  Rxa7 {[%clk 0:00:07]} 0-1


[Site "https://www.chess.com"]

[Event "Titled Tuesday Blitz June 13 Late 2023"]
[White "Schnaider, Ilan"]
[Black "Lashkin, Jegor"]
[WhiteFideId "169013"]
[BlackFideId "13907808"]
[WhiteElo "2224"]
[BlackElo "2368"]
[Result "1-0"]
[Round "5"]
[TimeControl "180+2"]
[Date "2023.06.13"]
[WhiteClock "0:00:03"]
[BlackClock "0:00:00"]
[Board "36"]

1. e4 {[%clk 0:03:00]}  c5 {[%clk 0:02:56]} 2. Nf3 {[%clk 0:03:01]}  d6 {[%clk 0:02:56]} 3. Bb5+ {[%clk 0:03:00]}  Bd7 {[%clk 0:02:55]} 4. Bxd7+ {[%clk 0:03:00]}  Qxd7 {[%clk 0:02:56]} 5. c4 {[%clk 0:03:00]}  e5 {[%clk 0:02:57]} 6. O-O {[%clk 0:02:57]}  Nc6 {[%clk 0:02:56]} 7. Nc3 {[%clk 0:02:57]}  Be7 {[%clk 0:02:56]} 8. a3 {[%clk 0:02:57]}  Bd8 {[%clk 0:02:56]} 9. b4 {[%clk 0:02:52]}  Nge7 {[%clk 0:02:56]} 10. d3 {[%clk 0:02:48]}  O-O {[%clk 0:02:55]} 11. Be3 {[%clk 0:02:48]}  cxb4 {[%clk 0:02:49]} 12. axb4 {[%clk 0:02:48]}  Nxb4 {[%clk 0:02:50]} 13. d4 {[%clk 0:02:47]}  exd4 {[%clk 0:02:47]} 14. Nxd4 {[%clk 0:02:47]}  a6 {[%clk 0:02:40]} 15. Ndb5 {[%clk 0:02:35]}  Bc7 {[%clk 0:02:08]} 16. Nxc7 {[%clk 0:01:31]}  Qxc7 {[%clk 0:02:08]} 17. Na4 {[%clk 0:01:29]}  Qc6 {[%clk 0:01:50]} 18. Nb6 {[%clk 0:00:42]}  Rae8 {[%clk 0:01:50]} 19. Qb3 {[%clk 0:00:37]}  a5 {[%clk 0:01:39]} 20. Rxa5 {[%clk 0:00:31]}  Na6 {[%clk 0:01:40]} 21. Nd5 {[%clk 0:00:29]}  Ng6 {[%clk 0:01:27]} 22. Rb5 {[%clk 0:00:25]}  Rxe4 {[%clk 0:01:19]} 23. Rxb7 {[%clk 0:00:15]}  Rxc4 {[%clk 0:01:16]} 24. Rd1 {[%clk 0:00:07]}  Re4 {[%clk 0:00:27]} 25. Rb6 {[%clk 0:00:06]}  Qc8 {[%clk 0:00:23]} 26. Rxd6 {[%clk 0:00:07]}  Nb8 {[%clk 0:00:12]} 27. Qd3 {[%clk 0:00:06]}  Re6 {[%clk 0:00:08]} 28. Nb6 {[%clk 0:00:04]}  Qe8 {[%clk 0:00:06]} 29. Rd5 {[%clk 0:00:03]}  h6 {[%clk 0:00:04]} 30. Nc4 {[%clk 0:00:02]}  Nc6 {[%clk 0:00:03]} 31. Qd2 {[%clk 0:00:02]}  Qe7 {[%clk 0:00:03]} 32. h3 {[%clk 0:00:02]}  Qf6 {[%clk 0:00:00]} 33. Nd6 {[%clk 0:00:03]} 1-0


[Site "https://www.chess.com"]

[Event "Titled Tuesday Blitz June 13 Late 2023"]
[White "Najer, Evgeniy"]
[Black "TimGrutter03"]
[WhiteFideId "4118987"]
[WhiteElo "2545"]
[BlackElo "2577"]
[Result "1-0"]
[Round "5"]
[TimeControl "180+2"]
[Date "2023.06.13"]
[WhiteClock "0:00:09"]
[BlackClock "0:00:01"]
[Board "38"]

1. d4 {[%clk 0:03:00]}  Nf6 {[%clk 0:02:58]} 2. c4 {[%clk 0:03:00]}  e6 {[%clk 0:02:58]} 3. Nf3 {[%clk 0:03:00]}  Bb4+ {[%clk 0:02:58]} 4. Bd2 {[%clk 0:02:59]}  Qe7 {[%clk 0:02:57]} 5. g3 {[%clk 0:02:58]}  O-O {[%clk 0:02:56]} 6. Nc3 {[%clk 0:02:58]}  b6 {[%clk 0:02:39]} 7. Bg2 {[%clk 0:02:56]}  Bb7 {[%clk 0:02:39]} 8. O-O {[%clk 0:02:56]}  d6 {[%clk 0:02:35]} 9. d5 {[%clk 0:02:34]}  e5 {[%clk 0:02:26]} 10. Nh4 {[%clk 0:02:15]}  Bc8 {[%clk 0:02:19]} 11. e4 {[%clk 0:02:00]}  a5 {[%clk 0:02:08]} 12. Qc2 {[%clk 0:01:59]}  Na6 {[%clk 0:02:05]} 13. Nb5 {[%clk 0:01:50]}  Bxd2 {[%clk 0:02:03]} 14. Qxd2 {[%clk 0:01:51]}  Nc5 {[%clk 0:01:56]} 15. Rae1 {[%clk 0:01:51]}  g6 {[%clk 0:01:52]} 16. Kh1 {[%clk 0:01:50]}  Ne8 {[%clk 0:01:39]} 17. Nc3 {[%clk 0:01:32]}  Ng7 {[%clk 0:01:24]} 18. f4 {[%clk 0:01:10]}  exf4 {[%clk 0:01:21]} 19. Rxf4 {[%clk 0:00:59]}  g5 {[%clk 0:01:20]} 20. Nf5 {[%clk 0:00:58]}  Bxf5 {[%clk 0:01:12]} 21. exf5 {[%clk 0:00:58]}  Qf6 {[%clk 0:00:31]} 22. Rff1 {[%clk 0:00:56]}  Rfe8 {[%clk 0:00:29]} 23. Rxe8+ {[%clk 0:00:29]}  Rxe8 {[%clk 0:00:30]} 24. Nb5 {[%clk 0:00:29]}  Re7 {[%clk 0:00:26]} 25. Nd4 {[%clk 0:00:28]}  h6 {[%clk 0:00:12]} 26. b3 {[%clk 0:00:28]}  Ne8 {[%clk 0:00:08]} 27. Nc6 {[%clk 0:00:27]}  Ne4 {[%clk 0:00:02]} 28. Qd3 {[%clk 0:00:23]}  Nc5 {[%clk 0:00:01]} 29. Nxe7+ {[%clk 0:00:22]}  Qxe7 {[%clk 0:00:02]} 30. Qd2 {[%clk 0:00:22]}  Nf6 {[%clk 0:00:02]} 31. Re1 {[%clk 0:00:21]}  Qf8 {[%clk 0:00:03]} 32. Qd4 {[%clk 0:00:21]}  Ncd7 {[%clk 0:00:01]} 33. h3 {[%clk 0:00:18]}  Ne5 {[%clk 0:00:01]} 34. Kh2 {[%clk 0:00:16]}  Nfd7 {[%clk 0:00:01]} 35. Qe3 {[%clk 0:00:15]}  f6 {[%clk 0:00:01]} 36. Bf3 {[%clk 0:00:14]}  Qe7 {[%clk 0:00:01]} 37. Bh5 {[%clk 0:00:14]}  Kg7 {[%clk 0:00:02]} 38. Kg2 {[%clk 0:00:13]}  Nc5 {[%clk 0:00:02]} 39. Qe2 {[%clk 0:00:14]}  Qd7 {[%clk 0:00:03]} 40. Bg6 {[%clk 0:00:12]}  Ncd3 {[%clk 0:00:03]} 41. Rf1 {[%clk 0:00:12]}  Nc5 {[%clk 0:00:03]} 42. h4 {[%clk 0:00:12]}  Qe7 {[%clk 0:00:03]} 43. hxg5 {[%clk 0:00:11]}  hxg5 {[%clk 0:00:04]} 44. Rh1 {[%clk 0:00:11]}  Qd8 {[%clk 0:00:01]} 45. Rh7+ {[%clk 0:00:11]}  Kg8 {[%clk 0:00:02]} 46. Qh5 {[%clk 0:00:09]}  Nxg6 {[%clk 0:00:01]} 47. Qxg6+ {[%clk 0:00:09]} 1-0


[Site "https://www.chess.com"]

[Event "Titled Tuesday Blitz June 13 Late 2023"]
[White "Lobanov, Sergei"]
[Black "Hnydiuk, Aleksander"]
[WhiteFideId "24183750"]
[BlackFideId "1109057"]
[WhiteElo "2501"]
[BlackElo "2374"]
[Result "1-0"]
[Round "5"]
[TimeControl "180+2"]
[Date "2023.06.13"]
[WhiteClock "0:00:18"]
[BlackClock "0:00:00"]
[Board "41"]

1. d4 {[%clk 0:03:00]}  Nf6 {[%clk 0:02:58]} 2. c4 {[%clk 0:03:01]}  c5 {[%clk 0:02:58]} 3. d5 {[%clk 0:03:01]}  b5 {[%clk 0:02:58]} 4. cxb5 {[%clk 0:03:00]}  a6 {[%clk 0:02:58]} 5. e3 {[%clk 0:03:01]}  axb5 {[%clk 0:02:54]} 6. Bxb5 {[%clk 0:03:02]}  Bb7 {[%clk 0:02:52]} 7. Nc3 {[%clk 0:02:52]}  Qa5 {[%clk 0:02:52]} 8. Bc4 {[%clk 0:02:37]}  e6 {[%clk 0:02:49]} 9. e4 {[%clk 0:02:22]}  Nxe4 {[%clk 0:02:46]} 10. Ne2 {[%clk 0:02:19]}  Nd6 {[%clk 0:02:30]} 11. b3 {[%clk 0:01:59]}  Nxc4 {[%clk 0:02:16]} 12. bxc4 {[%clk 0:01:59]}  exd5 {[%clk 0:02:07]} 13. Rb1 {[%clk 0:01:50]}  Ba6 {[%clk 0:01:13]} 14. Bd2 {[%clk 0:01:11]}  d4 {[%clk 0:00:52]} 15. Nd5 {[%clk 0:01:11]}  Qd8 {[%clk 0:00:52]} 16. Bf4 {[%clk 0:01:11]}  d6 {[%clk 0:00:43]} 17. Qa4+ {[%clk 0:01:11]}  Nd7 {[%clk 0:00:38]} 18. Qc6 {[%clk 0:01:03]}  Ra7 {[%clk 0:00:25]} 19. O-O {[%clk 0:00:41]}  Bxc4 {[%clk 0:00:18]} 20. Nec3 {[%clk 0:00:42]}  dxc3 {[%clk 0:00:06]} 21. Rfe1+ {[%clk 0:00:41]}  Be7 {[%clk 0:00:07]} 22. Rxe7+ {[%clk 0:00:25]}  Kf8 {[%clk 0:00:07]} 23. Rxd7 {[%clk 0:00:17]}  Rxd7 {[%clk 0:00:04]} 24. Qxd7 {[%clk 0:00:18]}  Qxd7 {[%clk 0:00:01]} 25. Rb8+ {[%clk 0:00:18]}  Qe8 {[%clk 0:00:00]} 26. Bxd6+ {[%clk 0:00:18]} 1-0


[Site "https://www.chess.com"]

[Event "Titled Tuesday Blitz June 13 Late 2023"]
[White "Wizard_of_Odds"]
[Black "Santos Ruiz, Miguel"]
[BlackFideId "22291482"]
[WhiteElo "2483"]
[BlackElo "2499"]
[Result "0-1"]
[Round "5"]
[TimeControl "180+2"]
[Date "2023.06.13"]
[WhiteClock "0:00:27"]
[BlackClock "0:00:31"]
[Board "42"]

1. Nf3 {[%clk 0:02:59]}  d5 {[%clk 0:02:57]} 2. e3 {[%clk 0:02:58]}  Nf6 {[%clk 0:02:55]} 3. c4 {[%clk 0:02:58]}  e6 {[%clk 0:02:55]} 4. b3 {[%clk 0:02:57]}  b6 {[%clk 0:02:54]} 5. Bb2 {[%clk 0:02:57]}  Bb7 {[%clk 0:02:54]} 6. d4 {[%clk 0:02:56]}  dxc4 {[%clk 0:02:36]} 7. Bxc4 {[%clk 0:02:53]}  Bb4+ {[%clk 0:02:31]} 8. Nbd2 {[%clk 0:02:48]}  Nbd7 {[%clk 0:02:30]} 9. O-O {[%clk 0:02:47]}  O-O {[%clk 0:02:29]} 10. Be2 {[%clk 0:02:45]}  Be7 {[%clk 0:02:24]} 11. Qc2 {[%clk 0:02:40]}  Rc8 {[%clk 0:02:21]} 12. Rac1 {[%clk 0:02:37]}  c5 {[%clk 0:02:18]} 13. Qb1 {[%clk 0:02:37]}  Rc7 {[%clk 0:02:16]} 14. Rfd1 {[%clk 0:02:36]}  Qa8 {[%clk 0:02:16]} 15. dxc5 {[%clk 0:02:21]}  Rxc5 {[%clk 0:02:15]} 16. Nc4 {[%clk 0:02:12]}  Rd5 {[%clk 0:02:02]} 17. Qa1 {[%clk 0:02:07]}  Rc8 {[%clk 0:01:56]} 18. Nce5 {[%clk 0:01:57]}  Rxd1+ {[%clk 0:01:51]} 19. Rxd1 {[%clk 0:01:58]}  Nxe5 {[%clk 0:01:46]} 20. Bxe5 {[%clk 0:01:55]}  h6 {[%clk 0:01:36]} 21. h3 {[%clk 0:01:55]}  Bd5 {[%clk 0:01:28]} 22. Qd4 {[%clk 0:01:47]}  Rc2 {[%clk 0:01:22]} 23. Rd2 {[%clk 0:01:43]}  Qc8 {[%clk 0:01:10]} 24. Kh2 {[%clk 0:01:24]}  Rxd2 {[%clk 0:00:53]} 25. Qxd2 {[%clk 0:01:17]}  Ne4 {[%clk 0:00:53]} 26. Qb2 {[%clk 0:01:17]}  f6 {[%clk 0:00:51]} 27. Bg3 {[%clk 0:01:15]}  Qc3 {[%clk 0:00:49]} 28. Qb1 {[%clk 0:00:57]}  Nxg3 {[%clk 0:00:49]} 29. Kxg3 {[%clk 0:00:47]}  Bd6+ {[%clk 0:00:49]} 30. Kh4 {[%clk 0:00:47]}  f5 {[%clk 0:00:45]} 31. Nd4 {[%clk 0:00:42]}  Qc7 {[%clk 0:00:35]} 32. Nxf5 {[%clk 0:00:34]}  Qd8+ {[%clk 0:00:31]} 33. Kg4 {[%clk 0:00:27]}  Qg5# {[%clk 0:00:31]} 0-1


[Site "https://www.chess.com"]